bitfinex-derivatives/quotes_BNBF0:USTF0_20251002
["timestamp","ask_amount","ask_price","bid_price","bid_amount"]
[1759364238259,0.16853565,1033.0,1031.5,0.64090528]
[1759364239862,0.16853565,1033.0,1031.6,0.64090528]
[1759364242360,0.16853565,1033.0,1031.7,0.64090528]
[1759364243163,0.16853565,1033.0,1031.6,0.64090528]
[1759364243659,0.16853565,1033.0,1031.5,0.85917211]
[1759364243660,0.16853565,1033.0,1031.7,0.64090528]
[1759364243861,0.16853565,1033.0,1031.8,0.64090528]
[1759364244263,0.16853565,1033.0,1031.7,0.64090528]
[1759364245661,0.86711352,1033.3,1031.7,0.64090528]
[1759364245865,0.16850709,1033.2,1031.7,0.64090528]
[1759364246364,0.16850709,1033.2,1031.6,0.64090528]
[1759364246664,0.16850709,1033.2,1031.7,0.64090528]
[1759364247264,0.16850709,1033.2,1031.6,0.64090528]
[1759364248569,0.16850709,1033.2,1031.5,0.64090528]
[1759364252472,0.16850709,1033.2,1031.4,0.64090528]
[1759364255172,0.16850709,1033.2,1031.2,7.38057814]
[1759364260676,0.86408428,1032.9,1031.2,7.38057814]
[1759364261373,0.86408428,1033.0,1031.2,7.38057814]
[1759364261970,0.86408428,1032.9,1031.2,7.38057814]
[1759364262375,0.86408428,1032.8,1031.2,7.38057814]
[1759364263974,0.86408428,1033.0,1031.2,7.38057814]
[1759364266680,0.86408428,1033.1,1031.2,7.38057814]
[1759364268181,0.86408428,1032.9,1031.2,7.38057814]
[1759364268480,0.86408428,1033.0,1031.2,7.38057814]
[1759364269583,0.16850709,1033.2,1031.2,7.38057814]
[1759364269882,1.03259137,1033.2,1031.2,7.38057814]
[1759364270380,0.16850709,1033.2,1031.2,7.38057814]
[1759364271283,1.03259137,1033.2,1031.2,7.38057814]
[1759364271683,0.16850709,1033.2,1031.2,7.38057814]
[1759364272185,1.03259137,1033.2,1031.2,7.38057814]
[1759364272582,0.16850709,1033.2,1031.2,7.38057814]
[1759364273583,1.03259137,1033.2,1031.2,8.01936449]
[1759364278590,0.86408428,1032.9,1031.3,0.63878635]
[1759364278789,0.86408428,1032.9,1031.2,8.01936449]
[1759364278987,0.86408428,1032.8,1031.2,8.01936449]
[1759364279185,0.86408428,1032.9,1031.2,8.01936449]
[1759364279886,0.86408428,1032.8,1031.2,8.01936449]
[1759364280091,0.86408428,1032.7,1031.2,7.38057814]
[1759364283389,0.86408428,1032.9,1031.2,7.38057814]
[1759364283690,0.86408428,1032.8,1031.2,7.38057814]
[1759364284289,0.86408428,1032.9,1031.2,7.38057814]
[1759364284489,0.86408428,1032.8,1031.2,7.38057814]
[1759364286293,0.86408428,1032.7,1031.2,7.38057814]
[1759364292403,0.86527895,1032.7,1031.2,7.38057814]
[1759364293503,0.86527895,1032.8,1031.2,7.38057814]
[1759364293704,0.86527895,1032.9,1031.2,7.38057814]
[1759364294405,0.86527895,1033.0,1031.2,7.38057814]
[1759364295001,0.16850709,1033.2,1031.2,7.38057814]
[1759364296607,1.03378604,1033.2,1031.2,7.38057814]
[1759364297103,0.86527895,1033.0,1031.2,7.38057814]
[1759364298207,0.86527895,1032.9,1031.2,7.38057814]
[1759364298506,0.86527895,1032.9,1031.2,8.02086812]
[1759364299012,0.86527895,1032.9,1031.2,7.38057814]
[1759364299209,0.86527895,1032.9,1031.2,8.02086812]
[1759364301811,0.86527895,1032.8,1031.2,8.02086812]
[1759364304313,1.29612642,1033.0,1031.2,8.02086812]
[1759364304516,0.16850709,1033.2,1031.2,7.38057814]
[1759364305517,0.16850709,1033.2,1031.2,8.02086812]
[1759364308115,0.16850709,1033.2,1031.3,0.64028998]
[1759364310020,0.16850709,1033.2,1031.4,0.64028998]
[1759364315423,0.16850709,1033.2,1031.2,7.38057814]
[1759364315625,0.16850709,1033.2,1031.4,0.64111725]
[1759364317626,0.16850709,1033.2,1031.5,0.64111725]
[1759364321525,1.03378604,1033.2,1031.5,0.64111725]
[1759364322025,0.16850709,1033.2,1031.5,0.64111725]
[1759364323626,1.03378604,1033.2,1031.5,0.64111725]
[1759364323830,1.03378604,1033.2,1031.4,0.64111725]
[1759364324728,0.16850709,1033.2,1031.4,0.64111725]
[1759364325528,0.86527895,1033.1,1031.4,0.64111725]
[1759364326633,0.16850709,1033.2,1031.4,0.64111725]
[1759364329134,0.16850709,1033.2,1031.5,0.64111725]
[1759364329534,0.86527895,1033.1,1031.6,0.64111725]
[1759364330433,0.86527895,1033.1,1031.3,0.64111725]
[1759364330636,0.86527895,1032.8,1031.2,8.02169539]
[1759364334541,0.86527895,1032.7,1031.2,8.02169539]
[1759364335141,0.86527895,1032.8,1031.2,7.38057814]
[1759364337042,0.16850709,1033.2,1031.2,8.02169539]
[1759364337043,1.03378604,1033.2,1031.2,8.02169539]
[1759364339039,0.86527895,1033.1,1031.2,7.38057814]
[1759364339239,0.86527895,1033.0,1031.2,8.02169539]
[1759364339440,0.86527895,1032.9,1031.2,7.38057814]
[1759364340341,0.86527895,1032.6,1031.2,8.02169539]
[1759364341242,0.86527895,1032.7,1031.2,7.38057814]
[1759364345347,0.86527895,1032.8,1031.2,7.38057814]
[1759364346248,0.86527895,1032.7,1031.2,7.38057814]
[1759364346744,0.86527895,1033.0,1031.2,7.38057814]
[1759364347045,0.86527895,1032.8,1031.2,7.38057814]
[1759364349347,0.16850709,1033.2,1031.2,7.38057814]
[1759364349348,0.86527895,1032.6,1031.2,7.38057814]
[1759364350449,0.86527895,1032.6,1030.4,43.14449559]
[1759364352551,0.86527895,1032.0,1030.4,0.16868433]
[1759364353653,0.86527895,1032.0,1030.0,0.64111725]
[1759364354058,0.86527895,1032.0,1030.2,0.16877187]
[1759364354257,0.86527895,1031.9,1030.2,0.16877187]
[1759364354458,0.86527895,1031.9,1029.7,0.64111725]
[1759364354459,0.86527895,1031.7,1029.7,0.64111725]
[1759364354656,0.86527895,1031.5,1029.7,0.64111725]
[1759364354956,0.86527895,1031.5,1029.9,0.16882017]
[1759364355358,0.86527895,1031.6,1029.9,0.16882017]
[1759364357165,0.86527895,1031.7,1029.9,0.16882017]
[1759364357366,0.86527895,1031.6,1029.9,0.16882017]
[1759364358766,0.86527895,1031.6,1029.7,7.3462744]
[1759364359167,0.86527895,1031.6,1029.7,7.51511833]
[1759364360362,0.86527895,1031.5,1029.7,7.51511833]
[1759364361064,0.86527895,1031.6,1029.7,7.51511833]
[1759364361466,0.86527895,1031.7,1029.7,7.51511833]
[1759364362670,0.86527895,1031.7,1029.7,7.3462744]
[1759364363468,0.86527895,1031.8,1029.7,7.3462744]
[1759364364868,0.86527895,1031.9,1029.7,7.3462744]
[1759364365068,0.86527895,1031.8,1029.7,7.3462744]
[1759364367264,0.86527895,1031.9,1029.7,7.3462744]
[1759364368268,0.86527895,1031.8,1029.7,7.3462744]
[1759364370566,0.86527895,1031.9,1029.7,7.3462744]
[1759364372369,0.86527895,1031.9,1028.2,0.64111725]
[1759364372573,0.86527895,1031.4,1029.2,0.16886359]
[1759364372873,0.86527895,1031.4,1028.0,11.67421306]
[1759364373068,0.86527895,1031.4,1029.0,0.16897674]
[1759364373270,0.86527895,1031.4,1028.0,11.67421306]
[1759364373671,0.86527895,1031.4,1029.0,0.16897674]
[1759364373871,0.86527895,1031.4,1028.0,11.67421306]
[1759364374072,0.86527895,1031.4,1029.0,0.16897674]
[1759364374473,0.86527895,1031.4,1028.0,11.67421306]
[1759364374773,0.86527895,1031.4,1028.9,0.16898413]
[1759364375576,0.86527895,1031.5,1028.9,0.16898413]
[1759364379578,0.86527895,1031.4,1028.9,0.16898413]
[1759364379775,0.86527895,1031.3,1028.9,0.16898413]
[1759364379979,0.86527895,1031.4,1028.9,0.16898413]
[1759364381376,1.29612642,1031.6,1028.9,0.16898413]
[1759364381377,0.86527895,1031.5,1028.9,0.16898413]
[1759364381578,0.86527895,1031.6,1028.9,0.16898413]
[1759364381978,0.86527895,1031.7,1028.9,0.16898413]
[1759364382175,0.86527895,1032.0,1028.9,0.16898413]
[1759364383275,0.86527895,1031.9,1028.9,0.16898413]
[1759364383882,0.86527895,1032.0,1028.9,0.16898413]
[1759364386584,0.86527895,1031.9,1028.9,0.16898413]
[1759364386879,0.86527895,1031.8,1027.6,0.64111725]
[1759364387080,0.86527895,1031.5,1028.9,0.16896608]
[1759364387380,0.86527895,1031.4,1027.4,0.64111725]
[1759364387684,0.86527895,1031.4,1028.8,0.16901614]
[1759364387883,0.86527895,1031.2,1027.4,0.64111725]
[1759364388084,0.86527895,1031.1,1027.4,0.64111725]
[1759364388384,0.86527895,1031.1,1028.7,0.16903091]
[1759364388583,0.86527895,1031.1,1027.4,0.64111725]
[1759364388883,0.86527895,1031.0,1028.3,0.16903953]
[1759364389279,0.86527895,1030.9,1028.3,0.16903953]
[1759364390783,0.86527895,1031.2,1027.1,0.64111725]
[1759364390983,0.86527895,1030.9,1028.3,0.16908512]
[1759364391282,0.86527895,1030.9,1026.9,0.64111725]
[1759364391686,0.86527895,1031.0,1028.3,0.16909744]
[1759364391982,0.86527895,1031.0,1026.9,0.64111725]
[1759364392182,0.86527895,1031.0,1028.3,0.16909333]
[1759364392386,0.86527895,1031.0,1026.9,0.64111725]
[1759364392585,0.86527895,1031.0,1028.3,0.16908676]
[1759364392886,0.86527895,1030.9,1027.0,0.64111725]
[1759364393190,0.86527895,1030.9,1028.4,0.16907772]
[1759364393384,0.86527895,1030.8,1028.4,0.16907772]
[1759364393586,0.86527895,1030.8,1027.2,0.64111725]
[1759364393782,0.86527895,1030.8,1028.4,0.16907772]
[1759364393988,0.86527895,1030.8,1027.2,0.64111725]
[1759364394287,0.86527895,1030.8,1028.4,0.16907896]
[1759364394483,0.86527895,1030.8,1027.2,0.64111725]
[1759364394787,0.86527895,1030.8,1028.4,0.16908019]
[1759364395089,0.86527895,1030.8,1027.2,0.64111725]
[1759364395388,0.86527895,1030.8,1028.4,0.16907608]
[1759364395688,0.86527895,1030.8,1027.2,0.64111725]
[1759364395884,0.86527895,1030.8,1028.4,0.16907362]
[1759364401189,0.86527895,1030.7,1028.4,0.16907362]
[1759364402896,0.86527895,1030.6,1028.4,0.16907362]
[1759364403097,0.86527895,1030.7,1028.4,0.16907362]
[1759364403293,0.86527895,1030.6,1028.4,0.16907362]
[1759364403494,0.86527895,1030.7,1028.4,0.16907362]
[1759364404397,0.86527895,1030.5,1028.4,0.16907362]
[1759364405097,1.29612642,1030.7,1028.4,0.16907362]
[1759364405098,0.86527895,1030.6,1028.4,0.16907362]
[1759364405394,0.86527895,1030.7,1028.4,0.16907362]
[1759364405795,0.86527895,1030.8,1028.4,0.16907362]
[1759364406396,0.86527895,1030.7,1028.4,0.16907362]
[1759364408397,0.86527895,1030.6,1028.4,0.16907362]
[1759364409796,0.86527895,1030.7,1028.4,0.16907362]
[1759364410499,0.86527895,1030.8,1028.4,0.16907362]
[1759364411395,0.86527895,1030.7,1028.4,0.16907362]
[1759364411698,0.86527895,1030.8,1028.4,0.16907362]
[1759364412396,0.86527895,1030.7,1028.4,0.16907362]
[1759364414400,0.86527895,1030.6,1028.4,0.16907362]
[1759364414595,0.86527895,1030.7,1028.4,0.16907362]
[1759364419509,0.86527895,1030.6,1028.4,0.16907362]
[1759364420509,0.86527895,1030.3,1028.4,0.16907362]
[1759364420805,0.86527895,1030.2,1028.4,0.16907362]
[1759364421206,0.86527895,1030.1,1028.4,0.16907362]
[1759364421409,0.86527895,1030.0,1028.4,0.16907362]
[1759364422807,0.86527895,1030.1,1028.4,0.16907362]
[1759364425008,0.86527895,1030.2,1028.4,0.16907362]
[1759364425810,0.86527895,1030.1,1028.4,0.16907362]
[1759364426012,0.86527895,1030.2,1028.4,0.16907362]
[1759364429513,0.86527895,1030.2,1028.4,0.81019087]
[1759364429916,0.86527895,1030.3,1028.4,0.16907362]
[1759364430318,0.86527895,1030.3,1028.4,0.81019087]
[1759364430718,0.86527895,1030.2,1028.4,0.81019087]
[1759364431115,2.1602107,1031.3,1028.4,0.81019087]
[1759364431116,0.86527895,1030.3,1028.4,0.81019087]
[1759364431420,0.86527895,1030.3,1028.5,0.64111725]
[1759364431616,0.86527895,1030.3,1028.4,0.81019087]
[1759364432420,0.86527895,1030.2,1028.5,0.64111725]
[1759364433617,2.1602107,1031.3,1028.5,0.64111725]
[1759364433618,0.86527895,1030.3,1028.5,0.64111725]
[1759364433817,0.86527895,1030.3,1028.6,0.64111725]
[1759364434222,0.86527895,1030.3,1028.7,0.64111725]
[1759364435220,0.86527895,1030.5,1028.6,0.64111725]
[1759364435523,0.86527895,1030.5,1028.7,0.64111725]
[1759364435723,0.86527895,1030.5,1028.6,0.64111725]
[1759364436520,0.86527895,1030.4,1028.5,0.64111725]
[1759364437921,0.86527895,1030.4,1028.6,0.64111725]
[1759364438222,0.86527895,1030.4,1028.5,0.64111725]
[1759364438421,0.86527895,1030.3,1028.6,0.64111725]
[1759364438621,0.86527895,1030.4,1028.6,0.64111725]
[1759364441323,0.86527895,1030.3,1028.6,0.64111725]
[1759364442423,0.86527895,1030.3,1028.7,0.64111725]
[1759364442627,0.86527895,1030.4,1028.6,0.64111725]
[1759364442828,0.86527895,1030.5,1028.5,0.64111725]
[1759364443528,0.86527895,1030.6,1028.5,0.64111725]
[1759364443825,0.86527895,1030.5,1028.5,0.64111725]
[1759364445329,0.86527895,1030.4,1028.5,0.64111725]
[1759364445529,0.86527895,1030.2,1028.6,0.64111725]
[1759364445729,0.86527895,1030.1,1028.5,0.64111725]
[1759364446130,0.1690383,1029.9,1028.5,0.64111725]
[1759364447026,0.1690383,1029.9,1028.6,0.64111725]
[1759364447231,1.03431725,1029.9,1028.6,0.64111725]
[1759364447428,1.03431725,1029.9,1028.5,0.64111725]
[1759364447730,0.86527895,1029.8,1028.5,0.64111725]
[1759364448132,1.03431725,1029.9,1028.5,0.64111725]
[1759364448527,1.03431725,1029.9,1028.4,0.81019087]
[1759364450234,0.1690383,1029.9,1028.4,0.16907362]
[1759364450532,0.1690383,1029.9,1028.3,0.64111725]
[1759364453337,1.03431725,1029.9,1028.3,0.64111725]
[1759364454838,0.86527895,1029.8,1028.3,0.64111725]
[1759364455135,0.86527895,1029.6,1028.2,0.16908306]
[1759364455741,0.86527895,1029.6,1028.1,0.64111725]
[1759364457941,0.86527895,1029.6,1028.0,0.81024099]
[1759364458441,0.86527895,1029.6,1028.1,0.64111725]
[1759364458638,0.86527895,1029.5,1028.0,0.81024099]
[1759364459342,0.86527895,1029.5,1028.0,0.16912374]
[1759364460440,0.86527895,1029.5,1028.0,0.81024099]
[1759364460644,0.86527895,1029.4,1028.0,0.16912374]
[1759364460844,0.86527895,1029.5,1028.0,0.16912374]
[1759364467050,0.86527895,1029.6,1028.0,0.16912374]
[1759364472050,0.86527895,1029.6,1027.7,0.64111725]
[1759364472347,0.86527895,1029.6,1027.8,0.1691632]
[1759364472550,0.86527895,1029.5,1027.8,0.1691632]
[1759364473050,0.86527895,1029.4,1027.8,0.1691632]
[1759364473247,0.86527895,1029.2,1027.8,0.1691632]
[1759364473447,0.86527895,1029.4,1027.8,0.1691632]
[1759364474454,0.86527895,1029.4,1027.3,0.64111725]
[1759364474653,0.86527895,1029.4,1027.6,0.16919692]
[1759364476552,0.86527895,1029.5,1027.6,0.16919692]
[1759364477756,0.86527895,1029.6,1027.6,0.16919692]
[1759364479952,0.86527895,1029.7,1027.6,0.16919692]
[1759364481454,0.86527895,1029.6,1027.6,0.16919692]
[1759364482153,0.86527895,1029.5,1027.1,0.64466996]
[1759364482456,0.86527895,1029.4,1027.5,0.16920597]
[1759364485557,0.86527895,1029.5,1027.5,0.16920597]
[1759364485959,0.86527895,1029.6,1027.5,0.16920597]
[1759364486161,0.86527895,1029.5,1027.5,0.16920597]
[1759364487563,0.86527895,1029.4,1027.5,0.16920597]
[1759364488261,0.86527895,1029.3,1027.5,0.16920597]
[1759364489466,0.86527895,1029.2,1027.5,0.16920597]
[1759364496868,0.86527895,1029.5,1027.5,0.16920597]
[1759364497673,0.86527895,1029.4,1027.5,0.16920597]
[1759364497870,0.86527895,1029.5,1027.5,0.16920597]
[1759364498272,0.86527895,1029.4,1027.5,0.81387593]
[1759364500572,0.86527895,1029.7,1027.5,0.16920597]
[1759364501277,0.86527895,1029.8,1027.5,0.81387593]
[1759364502377,0.86527895,1029.8,1027.6,0.64466996]
[1759364502979,0.86527895,1029.8,1027.5,0.81387593]
[1759364503277,0.1690383,1029.9,1027.6,0.64466996]
[1759364503278,0.86527895,1029.4,1027.6,0.64466996]
[1759364503478,0.86527895,1029.3,1027.6,0.64466996]
[1759364504276,0.86527895,1029.2,1027.5,0.81387593]
[1759364504473,0.86527895,1029.2,1027.6,0.64466996]
[1759364506579,0.86527895,1029.3,1027.5,0.81387593]
[1759364507080,0.86527895,1029.4,1027.5,0.81387593]
[1759364508481,0.86527895,1029.4,1027.6,0.64466996]
[1759364508680,0.86527895,1029.4,1027.5,0.81387593]
[1759364509481,0.86527895,1029.4,1027.6,0.64466996]
[1759364510183,0.86527895,1029.5,1027.7,0.64466996]
[1759364510381,0.86527895,1029.3,1027.9,0.64466996]
[1759364511283,0.86527895,1029.4,1027.9,0.64466996]
[1759364511478,0.86527895,1029.3,1027.9,0.64466996]
[1759364511881,0.86527895,1029.4,1027.9,0.64466996]
[1759364512283,0.86527895,1029.4,1028.0,0.64466996]
[1759364512483,0.86527895,1029.5,1027.9,0.64466996]
[1759364512683,0.86527895,1029.5,1028.0,0.64466996]
[1759364512879,0.86527895,1029.6,1028.0,0.64466996]
[1759364513385,0.86527895,1029.6,1028.1,0.64466996]
[1759364520888,0.86527895,1029.5,1028.1,0.64466996]
[1759364521089,0.86527895,1029.6,1028.1,0.64466996]
[1759364521287,0.86527895,1029.7,1028.1,0.64466996]
[1759364521787,0.86527895,1029.6,1028.1,0.64466996]
[1759364521987,0.86527895,1029.7,1028.1,0.64466996]
[1759364522587,0.86527895,1029.7,1028.0,0.64466996]
[1759364522792,0.86527895,1029.6,1028.0,0.64466996]
[1759364523192,0.86527895,1029.5,1028.0,0.64466996]
[1759364524994,0.86527895,1029.4,1028.0,0.64466996]
[1759364525292,0.86527895,1029.4,1027.9,0.64466996]
[1759364529896,0.86527895,1029.5,1027.8,0.64466996]
[1759364530096,0.86527895,1029.4,1027.7,0.64466996]
[1759364530694,0.86527895,1029.1,1027.7,0.64466996]
[1759364531895,0.86527895,1029.4,1027.6,0.64466996]
[1759364532297,1.29612642,1029.8,1027.6,0.64466996]
[1759364532298,0.86527895,1029.5,1027.6,0.64466996]
[1759364535699,0.86527895,1029.3,1027.8,0.64466996]
[1759364536000,0.86527895,1029.4,1027.9,0.64466996]
[1759364536397,0.86527895,1029.4,1028.0,0.64466996]
[1759364537301,0.86527895,1029.4,1028.0,0.6480725]
[1759364537601,0.86527895,1029.4,1028.1,0.6480725]
[1759364537798,0.86527895,1029.5,1028.1,0.6480725]
[1759364538100,0.86527895,1029.6,1028.2,0.6480725]
[1759364538301,0.86527895,1029.7,1028.1,0.6480725]
[1759364538596,0.86527895,1029.8,1028.1,0.6480725]
[1759364539602,0.86527895,1029.7,1028.4,0.6480725]
[1759364540099,0.86527895,1029.8,1028.4,0.6480725]
[1759364541100,0.86527895,1029.8,1028.5,0.6480725]
[1759364541304,1.03431725,1029.9,1028.5,0.6480725]
[1759364541605,0.1690383,1029.9,1028.5,0.6480725]
[1759364542506,0.1690383,1029.9,1028.4,0.6480725]
[1759364544701,0.86527895,1030.4,1028.5,0.6480725]
[1759364544905,0.16902188,1030.1,1028.5,0.6480725]
[1759364546603,0.16902188,1030.1,1028.6,0.6480725]
[1759364546803,0.86527895,1030.4,1028.6,0.6480725]
[1759364547207,1.03427211,1030.3,1028.7,0.6480725]
[1759364547403,0.16899316,1030.3,1028.7,0.6480725]
[1759364548005,0.16899316,1030.3,1028.8,0.6480725]
[1759364548209,0.16899316,1030.3,1028.7,0.6480725]
[1759364549506,0.16899316,1030.3,1028.6,0.6480725]
[1759364550809,0.86527895,1030.8,1028.7,0.6480725]
[1759364551108,0.16898044,1030.4,1028.7,0.6480725]
[1759364551306,0.16898044,1030.4,1028.6,0.6480725]
[1759364552210,0.16898044,1030.4,1028.7,0.6480725]
[1759364552408,0.16898044,1030.4,1028.6,0.6480725]
[1759364553112,0.16898044,1030.4,1028.7,0.6480725]
[1759364553311,0.16898044,1030.4,1028.6,0.6480725]
[1759364555408,0.16898044,1030.4,1028.7,0.6480725]
[1759364555609,0.86527895,1030.9,1028.7,0.6480725]
[1759364555810,0.16894475,1030.6,1028.7,0.6480725]
[1759364556309,0.16894475,1030.6,1028.8,0.6480725]
[1759364558510,0.16894475,1030.6,1028.7,0.6480725]
[1759364559716,0.16894475,1030.6,1028.6,0.6480725]
[1759364562824,0.16894475,1030.6,1028.5,0.6480725]
[1759364563114,0.16894475,1030.6,1028.4,0.6480725]
[1759364564115,0.16894475,1030.6,1028.3,0.6480725]
[1759364564418,0.16894475,1030.6,1028.1,0.85371996]
[1759364564419,0.16894475,1030.6,1028.2,0.6480725]
[1759364570919,0.16894475,1030.6,1028.3,0.6480725]
[1759364572525,0.16894475,1030.6,1028.4,0.6480725]
[1759364573226,0.16894475,1030.6,1028.3,0.6480725]
[1759364573421,0.16894475,1030.6,1028.4,0.6480725]
[1759364574225,0.16894475,1030.6,1028.3,0.6480725]
[1759364574425,0.16894475,1030.6,1028.4,0.6480725]
[1759364575333,0.16894475,1030.6,1028.3,0.6480725]
[1759364575730,0.16894475,1030.6,1028.4,0.6480725]
[1759364577234,0.16894475,1030.6,1028.5,0.6480725]
[1759364577632,0.16894475,1030.6,1028.6,0.6480725]
[1759364577836,0.16894475,1030.6,1028.5,0.6480725]
[1759364578832,0.16894475,1030.6,1028.6,0.6480725]
[1759364586047,0.16894475,1030.6,1028.5,0.6480725]
[1759364586344,0.16894475,1030.6,1028.6,0.6480725]
[1759364586741,0.16894475,1030.6,1028.2,1.2775727]
[1759364586742,0.16894475,1030.6,1028.5,0.6480725]
[1759364587745,0.16894475,1030.6,1028.4,0.6480725]
[1759364592149,0.16894475,1030.6,1028.5,0.6480725]
[1759364594352,1.0342237,1030.6,1028.6,0.6480725]
[1759364594553,0.16894475,1030.6,1028.6,0.6480725]
[1759364594848,0.16894475,1030.6,1028.8,0.6480725]
[1759364595048,0.16894475,1030.6,1028.8,0.64323756]
[1759364595352,0.16894475,1030.6,1028.9,0.64323756]
[1759364595753,0.16894475,1030.6,1029.0,0.64323756]
[1759364596253,0.16894475,1030.6,1028.9,0.64323756]
[1759364596553,0.16894475,1030.6,1029.0,0.64323756]
[1759364597350,0.16894475,1030.6,1029.1,0.64323756]
[1759364599251,0.16894475,1030.6,1029.0,0.64323756]
[1759364599252,1.0342237,1030.6,1029.0,0.64323756]
[1759364599456,0.86527895,1030.5,1029.1,0.64323756]
[1759364599952,0.16894475,1030.6,1029.1,0.64323756]
[1759364602456,0.16894475,1030.6,1029.2,0.64323756]
[1759364602654,0.16894475,1030.6,1029.1,0.64323756]
[1759364603657,0.86527895,1030.5,1029.1,0.64323756]
[1759364603854,0.86527895,1030.4,1029.1,0.64323756]
[1759364604356,2.1602107,1031.4,1029.8,0.64323756]
[1759364604555,0.86527895,1031.5,1030.0,0.64323756]
[1759364604756,0.16889146,1031.3,1030.2,0.64323756]
[1759364605056,0.16889146,1031.3,1030.0,0.64323756]
[1759364605262,0.90894894,1031.2,1029.9,0.64323756]
[1759364605458,0.90894894,1031.1,1029.9,0.64323756]
[1759364605661,0.90894894,1031.0,1029.9,0.64323756]
[1759364605859,0.16889146,1031.3,1029.9,0.64323756]
[1759364606057,0.90805665,1031.2,1029.9,0.64323756]
[1759364606262,0.90805665,1031.1,1029.9,0.64323756]
[1759364606462,0.90805665,1031.0,1029.9,0.64323756]
[1759364606757,0.16889146,1031.3,1029.9,0.64323756]
[1759364606963,0.90750762,1031.2,1029.9,0.64323756]
[1759364607260,0.90750762,1031.1,1029.8,0.64323756]
[1759364607462,0.90750762,1031.0,1029.8,0.64323756]
[1759364607658,0.16889146,1031.3,1029.9,0.64323756]
[1759364607859,0.90694795,1031.2,1029.9,0.64323756]
[1759364608061,0.90694795,1031.1,1029.9,0.64323756]
[1759364608364,0.16889146,1031.3,1029.8,0.64323756]
[1759364608561,0.90632625,1031.2,1029.8,0.64323756]
[1759364608862,0.90632625,1031.1,1029.8,0.64323756]
[1759364609067,0.16889146,1031.3,1029.8,0.64323756]
[1759364609364,0.90632686,1031.2,1029.8,0.64323756]
[1759364609564,0.90632686,1031.1,1029.8,0.64323756]
[1759364609860,0.86527895,1031.7,1029.8,0.64323756]
[1759364610064,0.16882181,1031.4,1029.9,0.64323756]
[1759364610265,0.90579417,1031.3,1029.8,0.64323756]
[1759364610560,0.90579417,1031.2,1029.8,0.64323756]
[1759364610765,0.16882181,1031.4,1029.8,0.64323756]
[1759364610962,0.90525231,1031.3,1029.8,0.64323756]
[1759364611167,0.90525231,1031.2,1029.8,0.64323756]
[1759364611462,0.90525231,1031.1,1029.8,0.64323756]
[1759364611766,0.16882181,1031.4,1029.8,0.64323756]
[1759364612063,0.90482506,1031.3,1029.9,0.64323756]
[1759364612265,0.90482506,1031.2,1029.8,0.64323756]
[1759364612463,0.90482506,1031.1,1029.8,0.64323756]
[1759364612667,0.16882181,1031.4,1029.8,0.64323756]
[1759364612864,0.90438421,1031.3,1029.8,0.64323756]
[1759364613067,0.90438421,1031.2,1029.8,0.64323756]
[1759364613364,0.90438421,1031.1,1029.8,0.64323756]
[1759364613563,0.16882181,1031.4,1029.8,0.64323756]
[1759364613868,0.90398378,1031.3,1029.8,0.64323756]
[1759364614063,0.90398378,1031.2,1029.8,0.64323756]
[1759364614263,0.90398378,1031.1,1029.8,0.64323756]
[1759364614463,0.16882181,1031.4,1029.7,0.64323756]
[1759364614666,0.90365893,1031.3,1029.7,0.64323756]
[1759364614868,0.90365893,1031.2,1029.7,0.64323756]
[1759364615070,0.90365893,1031.1,1029.7,0.64323756]
[1759364615269,0.90369021,1031.0,1029.5,0.64323756]
[1759364615565,0.90358564,1030.9,1029.5,0.64323756]
[1759364615765,0.16882181,1031.4,1029.5,0.64323756]
[1759364615969,0.90358578,1031.3,1029.5,0.64323756]
[1759364616269,0.90358578,1031.2,1029.5,0.64323756]
[1759364616466,0.90358578,1031.1,1029.5,0.64323756]
[1759364616669,0.90358578,1031.0,1029.5,0.64323756]
[1759364616969,0.90358578,1030.9,1029.5,0.64323756]
[1759364617169,0.16882181,1031.4,1029.5,0.64323756]
[1759364617368,0.90325376,1031.3,1029.5,0.64323756]
[1759364617565,0.90325376,1031.2,1029.5,0.64323756]
[1759364617767,0.90325376,1031.1,1029.5,0.64323756]
[1759364617966,0.90325376,1031.0,1029.5,0.64323756]
[1759364618168,0.90325376,1030.9,1029.5,0.64323756]
[1759364618369,0.86527895,1031.3,1029.5,0.64323756]
[1759364618570,0.9031773,1031.2,1029.4,0.64323756]
[1759364618771,0.9031773,1031.1,1029.3,0.64323756]
[1759364619374,1.76845625,1031.1,1029.2,0.64323756]
[1759364619571,0.9031773,1031.0,1029.2,0.64323756]
[1759364621775,0.9031773,1031.0,1029.1,0.64323756]
[1759364622075,0.9031773,1030.9,1029.1,0.64323756]
[1759364622375,0.9031773,1030.8,1029.1,0.64323756]
[1759364622676,0.9031773,1030.7,1029.1,0.64323756]
[1759364622872,0.9031773,1030.6,1029.1,0.64323756]
[1759364623077,0.9031773,1030.5,1029.1,0.64323756]
[1759364623375,0.86527895,1031.2,1029.1,0.64323756]
[1759364623671,0.90419466,1031.1,1029.1,0.64323756]
[1759364623875,0.90419466,1031.0,1029.1,0.64323756]
[1759364624073,0.90419466,1030.9,1029.1,0.64323756]
[1759364624270,0.90419466,1030.8,1029.1,0.64323756]
[1759364624474,0.90419466,1030.7,1029.1,0.64323756]
[1759364624672,0.90419466,1030.6,1029.1,0.64323756]
[1759364624972,0.86527895,1031.2,1029.1,0.64323756]
[1759364625172,0.90425745,1031.1,1029.1,0.64323756]
[1759364625372,0.90425745,1031.0,1029.1,0.64323756]
[1759364625575,0.90425745,1030.9,1029.1,0.64323756]
[1759364625773,0.90425745,1030.8,1029.1,0.64323756]
[1759364625972,0.90425745,1030.7,1029.1,0.64323756]
[1759364626177,0.90425745,1030.6,1029.1,0.64323756]
[1759364626377,0.86527895,1031.2,1029.1,0.64323756]
[1759364626677,0.90440151,1031.1,1029.1,0.64323756]
[1759364626972,0.90440151,1031.0,1029.1,0.64323756]
[1759364627176,0.90440151,1030.9,1029.1,0.64323756]
[1759364627372,0.90440151,1030.8,1029.1,0.64323756]
[1759364627675,0.90440151,1030.7,1029.1,0.64323756]
[1759364627876,0.90440151,1030.6,1029.1,0.64323756]
[1759364628076,0.90440151,1030.5,1029.1,0.64323756]
[1759364628371,0.86527895,1031.2,1029.1,0.64323756]
[1759364628576,0.90458485,1031.1,1029.1,0.64323756]
[1759364628777,0.90458485,1031.0,1029.1,0.64323756]
[1759364628977,0.90458485,1030.9,1029.1,0.64323756]
[1759364629174,0.90458485,1030.8,1029.1,0.64323756]
[1759364629474,0.90458485,1030.7,1029.1,0.64323756]
[1759364629677,0.90458485,1030.6,1029.1,0.64323756]
[1759364629873,0.90458485,1030.5,1029.1,0.64323756]
[1759364630077,0.86527895,1031.0,1029.1,0.64323756]
[1759364630276,0.90470899,1030.9,1029.1,0.64323756]
[1759364630476,0.90470899,1030.8,1029.1,0.64323756]
[1759364630678,0.90470899,1030.7,1029.1,0.64323756]
[1759364630876,0.90470899,1030.6,1028.9,0.64323756]
[1759364631075,0.90470899,1030.5,1028.9,0.64323756]
[1759364631276,0.90470899,1030.4,1028.8,0.64323756]
[1759364631478,0.90470899,1030.3,1028.8,0.64323756]
[1759364631775,0.90470899,1030.2,1028.8,0.64323756]
[1759364631976,0.86527895,1030.8,1028.8,0.64323756]
[1759364632175,0.90492815,1030.7,1028.8,0.64323756]